[Event "7th Capablanca Memorial GM 2019"]
[Site "Anogia"]
[Date "2019.09.18"]
[Round "8.4"]
[White "Ioannidis, Evgenios"]
[Black "Dushyant Sharma"]
[Result "1/2-1/2"]
[ECO "C54"]
[WhiteElo "2390"]
[BlackElo "2242"]
[Annotator "NA"]
[PlyCount "206"]
[EventDate "2019.09.11"]
[EventType "tourn"]
[EventCountry "GRE"]
[SourceTitle "playchess.com"]
[Source "ChessBase"]
[SourceQuality "1"]
[TimeControl "40/5400+30:1800+30"]

1. e4 {[%emt 0:01:01]} e5 {[%emt 0:00:00]} 2. Nf3 {[%emt 0:00:23]} Nc6 {[%emt 0:00:00]} 3. Bc4 {[%emt 0:00:23]} Bc5 {[%emt 0:00:03]} 4. c3 {[%emt 0:00:45]} Nf6 {[%emt 0:00:11]} 5. d3 {[%emt 0:00:41]} O-O {[%emt 0:00:13]} 6. O-O {[%emt 0:00:45]} d5 {[%emt 0:00:08]} 7. exd5 {[%emt 0:00:27]} Nxd5 {[%emt 0:00:05]} 8. a4 {[%emt 0:01:09]} Nb6 {[%emt 0:00:17]} 9. Bb3 {[%emt 0:01:26]} a5 {[%emt 0:14:06]} 10. Re1 {[%emt 0:01:45]} Bg4 {[%emt 0:04:48]} 11. h3 {[%emt 0:01:03]} Bh5 {[%emt 0:00:19]} 12. Nbd2 {[%emt 0:01:54]} Qxd3 {[%emt 0:18:09]} 13. Nxe5 {[%emt 0:00:49]} Qg3 {[%emt 0:25:15]} 14. Qxh5 {[%emt 0:01:03]} Qxf2+ {[%emt 0:01:31]} 15. Kh2 {[%emt 0:00:10]} Bd6 {[%emt 0:09:13]} 16. Ndf3 {[%emt 0:13:14]} Nxe5 {[%emt 0:00:51]} 17. Rxe5 {[%emt 0:00:23]} Nd7 {[%emt 0:01:24]} 18. Bf4 {[%emt 0:12:55]} Nxe5 {[%emt 0:02:58]} 19. Bxe5 {[%emt 0:00:49]} Bxe5+ {[%emt 0:01:06]} 20. Nxe5 {[%emt 0:02:49]} Qf4+ {[%emt 0:01:11]} 21. Kh1 {[%emt 0:00:05]} g6 {[%emt 0:02:28]} 22. Nd3 {[%emt 0:17:05]} Qe3 {[%emt 0:00:15]} 23. Qd1 {[%emt 0:00:28]} Rad8 {[%emt 0:01:22]} 24. Bc4 {[%emt 0:00:04]} Qe4 {[%emt 0:03:39]} 25. b3 {[%emt 0:02:41]} Qf5 {[%emt 0:00:15]} 26. Qf1 {[%emt 0:01:20]} Qxf1+ {[%emt 0:00:20]} 27. Rxf1 {[%emt 0:00:04]} Kh8 {[%emt 0:03:51]} 28. Ne5 {[%emt 0:01:55]} Kg7 {[%emt 0:00:09]} 29. Rxf7+ {[%emt 0:02:12]} Rxf7 {[%emt 0:00:06]} 30. Nxf7 {[%emt 0:00:02]} Rd1+ {[%emt 0:03:41]} 31. Kh2 {[%emt 0:00:04]} Kf6 {[%emt 0:00:43]} 32. h4 {[%emt 0:00:13]} c6 {[%emt 0:01:22]} 33. Ng5 {[%emt 0:01:45]} Rc1 {[%emt 0:01:46]} 34. Ne4+ {[%emt 0:03:40]} Ke7 {[%emt 0:00:20]} 35. Kg3 {[%emt 0:02:14]} Rb1 {[%emt 0:00:20]} 36. Kf4 {[%emt 0:04:02]} h6 {[%emt 0:01:35]} 37. Ke5 {[%emt 0:04:48]} b6 {[%emt 0:00:45]} 38. g3 {[%emt 0:05:05]} Rb2 {[%emt 0:00:51]} 39. Kf4 {[%emt 0:03:12]} Rb1 {[%emt 0:00:51]} 40. Kg4 {[%emt 0:00:00]} Rh1 {[%emt 0:00:00]} 41. Kf3 {[%emt 0:08:39]} Rb1 {[%emt 0:03:29]} 42. Ke3 {[%emt 0:02:31]} b5 {[%emt 0:06:42]} 43. axb5 {[%emt 0:16:28]} cxb5 {[%emt 0:00:07]} 44. Bxb5 {[%emt 0:00:49]} Rxb3 {[%emt 0:00:08]} 45. Ba4 {[%emt 0:00:20]} Ra3 {[%emt 0:00:41]} 46. Bc2 {[%emt 0:00:05]} a4 {[%emt 0:04:02]} 47. Kd2 {[%emt 0:13:18]} Ra1 {[%emt 0:01:34]} 48. Nc5 {[%emt 0:00:10]} a3 {[%emt 0:00:35]} 49. Nb3 {[%emt 0:03:17]} Rg1 {[%emt 0:00:53]} 50. Bxg6 {[%emt 0:00:07]} a2 {[%emt 0:01:14]} 51. Kc2 {[%emt 0:00:23]} Rb1 {[%emt 0:00:39]} 52. Na1 {[%emt 0:00:04]} Rxa1 {[%emt 0:00:09]} 53. Kb2 {[%emt 0:00:03]} Rg1 {[%emt 0:00:22]} 54. Kxa2 {[%emt 0:00:04]} Rxg3 {[%emt 0:00:03]} 55. h5 {[%emt 0:00:04]} Rxc3 {[%emt 0:00:05]} 56. Kb2 {[%emt 0:00:05]} Rc5 {[%emt 0:00:27]} 57. Kb3 {[%emt 0:00:27]} Rc6 {[%emt 0:06:04]} 58. Be4 {[%emt 0:00:44]} Re6 {[%emt 0:01:17]} 59. Bf5 {[%emt 0:01:06]} Rc6 {[%emt 0:01:11]} 60. Be4 {[%emt 0:00:04]} Rc7 {[%emt 0:00:54]} 61. Kb4 {[%emt 0:01:03]} Kd6 {[%emt 0:00:56]} 62. Bg6 {[%emt 0:01:19]} Kd5 {[%emt 0:00:08]} 63. Be8 {[%emt 0:00:40]} Rc5 {[%emt 0:00:59]} 64. Bf7+ {[%emt 0:02:05]} Kd4 {[%emt 0:00:09]} 65. Bg6 {[%emt 0:00:04]} Re5 {[%emt 0:02:23]} 66. Kb3 {[%emt 0:00:11]} Ra5 {[%emt 0:00:48]} 67. Kc2 {[%emt 0:00:08]} Ra2+ {[%emt 0:00:06]} 68. Kd1 {[%emt 0:00:23]} Ke3 {[%emt 0:00:06]} 69. Bf7 {[%emt 0:00:32]} Rd2+ {[%emt 0:00:43]} 70. Ke1 {[%emt 0:00:40]} Rf2 {[%emt 0:00:52]} 71. Bg6 {[%emt 0:00:20]} Ra2 {[%emt 0:00:04]} 72. Kf1 {[%emt 0:00:10]} Re2 {[%emt 0:00:49]} 73. Be8 {[%emt 0:00:24]} Rf2+ {[%emt 0:00:33]} 74. Kg1 {[%emt 0:00:05]} Kf3 {[%emt 0:00:43]} 75. Bf7 {[%emt 0:00:21]} Kg3 {[%emt 0:00:05]} 76. Bg6 {[%emt 0:00:25]} Rf8 {[%emt 0:02:12]} 77. Bh7 {[%emt 0:00:04]} Rf6 {[%emt 0:00:12]} 78. Bg6 {[%emt 0:00:06]} Rf2 {[%emt 0:00:10]} 79. Bh7 {[%emt 0:00:08]} Rg2+ {[%emt 0:00:16]} 80. Kf1 {[%emt 0:00:04]} Rf2+ {[%emt 0:00:54]} 81. Kg1 {[%emt 0:00:04]} Rf6 {[%emt 0:00:20]} 82. Bg6 {[%emt 0:00:10]} Rf4 {[%emt 0:00:04]} 83. Bh7 {[%emt 0:00:06]} Kf3 {[%emt 0:00:04]} 84. Bg6 {[%emt 0:00:32]} Ke2 {[%emt 0:01:36]} 85. Kg2 {[%emt 0:00:06]} Rg4+ {[%emt 0:00:08]} 86. Kh3 {[%emt 0:00:03]} Kf3 {[%emt 0:00:55]} 87. Bf7 {[%emt 0:00:04]} Rg3+ {[%emt 0:00:28]} 88. Kh4 {[%emt 0:00:24]} Rg1 {[%emt 0:01:29]} 89. Bd5+ {[%emt 0:00:03]} Kf4 {[%emt 0:00:15]} 90. Bc6 {[%emt 0:01:46]} Rg4+ {[%emt 0:01:09]} 91. Kh3 {[%emt 0:00:05]} Rg3+ {[%emt 0:00:03]} 92. Kh4 {[%emt 0:00:28]} Rc3 {[%emt 0:00:20]} 93. Be8 {[%emt 0:00:19]} Rc8 {[%emt 0:00:59]} 94. Bf7 {[%emt 0:00:15]} Rc7 {[%emt 0:00:54]} 95. Be8 {[%emt 0:00:17]} Re7 {[%emt 0:00:08]} 96. Bg6 {[%emt 0:00:06]} Kf3 {[%emt 0:00:29]} 97. Kh3 {[%emt 0:00:11]} Re1 {[%emt 0:00:27]} 98. Kh2 {[%emt 0:00:05]} Rc1 {[%emt 0:00:13]} 99. Bf7 {[%emt 0:00:13]} Kg4 {[%emt 0:00:14]} 100. Kg2 {[%emt 0:00:48]} Rc2+ {[%emt 0:00:09]} 101. Kf1 {[%emt 0:00:17]} Kf3 {[%emt 0:00:30]} 102. Ke1 {[%emt 0:00:06]} Re2+ {[%emt 0:00:11]} 103. Kd1 {[%emt 0:00:03]} Re5 {[%emt 0:00:13]} 1/2-1/2

[Event "7th Capablanca Memorial GM 2019"]
[Site "Anogia"]
[Date "2019.09.18"]
[Round "8.5"]
[White "Anagnostopoulos, Konstantinos"]
[Black "Manish Anto Cristiano F"]
[Result "1-0"]
[ECO "A34"]
[WhiteElo "2322"]
[BlackElo "2364"]
[Annotator "NA"]
[PlyCount "59"]
[EventDate "2019.09.11"]
[EventType "tourn"]
[EventCountry "GRE"]
[SourceTitle "playchess.com"]
[Source "ChessBase"]
[SourceQuality "1"]
[TimeControl "40/5400+30:1800+30"]

1. c4 {[%emt 0:00:00]} c5 {[%emt 0:00:00]} 2. Nf3 {[%emt 0:00:00]} Nc6 {[%emt 0:00:05]} 3. Nc3 {[%emt 0:00:36]} e5 {[%emt 0:00:50]} 4. e3 {[%emt 0:00:55]} Nf6 {[%emt 0:00:12]} 5. d4 {[%emt 0:01:12]} cxd4 {[%emt 0:00:40]} 6. exd4 {[%emt 0:00:19]} e4 {[%emt 0:00:34]} 7. Ne5 {[%emt 0:03:00]} Be7 {[%emt 0:01:50]} 8. Be2 {[%emt 0:01:37]} O-O {[%emt 0:01:39]} 9. O-O {[%emt 0:00:40]} d6 {[%emt 0:03:45]} 10. Nxc6 {[%emt 0:00:08]} bxc6 {[%emt 0:00:12]} 11. f3 {[%emt 0:06:44]} d5 {[%emt 0:02:14]} 12. c5 {[%emt 0:00:20]} exf3 {[%emt 0:02:48]} 13. Bxf3 {[%emt 0:00:14]} a5 {[%emt 0:01:57]} 14. a3 {[%emt 0:01:43]} Bf5 {[%emt 0:04:05]} 15. Bxd5 {[%emt 0:08:57]} Bg4 {[%emt 0:10:39]} 16. Bf3 {[%emt 0:01:10]} Bxf3 {[%emt 0:00:21]} 17. Rxf3 {[%emt 0:01:06]} Ra7 {[%emt 0:01:53]} 18. Qa4 {[%emt 0:10:34]} Qd7 {[%emt 0:07:04]} 19. Qc4 {[%emt 0:08:42]} Rb7 {[%emt 0:05:26]} 20. b4 {[%emt 0:02:51]} Rd8 {[%emt 0:02:38]} 21. Be3 {[%emt 0:00:22]} axb4 {[%emt 0:07:00]} 22. axb4 {[%emt 0:00:05]} Rdb8 {[%emt 0:07:47]} 23. Rb1 {[%emt 0:04:58]} Bd8 {[%emt 0:02:55]} 24. Bf4 {[%emt 0:04:43]} Ra8 {[%emt 0:04:01]} 25. Be5 {[%emt 0:02:50]} Ra3 {[%emt 0:05:12]} 26. b5 {[%emt 0:05:33]} cxb5 {[%emt 0:01:59]} 27. c6 {[%emt 0:02:56]} bxc4 {[%emt 0:08:12]} 28. cxb7 {[%emt 0:00:14]} Ne8 {[%emt 0:08:06]} 29. b8=Q {[%emt 0:00:16]} f6 {[%emt 0:00:13]} 30. Qb4 {[%emt 0:00:59]} 1-0

[Event "7th Capablanca Memorial GM 2019"]
[Site "Anogia"]
[Date "2019.09.19"]
[Round "9.2"]
[White "Dushyant Sharma"]
[Black "Anagnostopoulos, Konstantinos"]
[Result "1/2-1/2"]
[ECO "C49"]
[WhiteElo "2242"]
[BlackElo "2322"]
[Annotator "ChessBase"]
[PlyCount "32"]
[EventDate "2019.09.11"]
[EventType "tourn"]
[EventCountry "GRE"]
[SourceTitle "playchess.com"]
[Source "ChessBase"]
[SourceQuality "1"]
[TimeControl "40/5400+30:1800+30"]

1. e4 {[%emt 0:00:00]} e5 {[%emt 0:00:11]} 2. Nf3 {[%emt 0:00:00]} Nc6 {[%emt 0:00:00]} 3. Nc3 {[%emt 0:00:39]} Nf6 {[%emt 0:00:00]} 4. Bb5 {[%emt 0:00:08]} Bb4 {[%emt 0:00:00]} 5. O-O {[%emt 0:00:34]} O-O {[%emt 0:00:13]} 6. d3 {[%emt 0:00:13]} Bxc3 {[%emt 0:00:16]} 7. bxc3 {[%emt 0:00:06]} d6 {[%emt 0:00:20]} 8. Bg5 {[%emt 0:01:54]} Qe7 {[%emt 0:00:31]} 9. Re1 {[%emt 0:00:45]} a6 {[%emt 0:00:17]} 10. Bc4 {[%emt 0:00:13]} h6 {[%emt 0:01:55]} 11. Bh4 {[%emt 0:00:08]} Be6 {[%emt 0:05:33]} 12. Bb3 {[%emt 0:11:23]} Na5 {[%emt 0:16:54]} 13. d4 {[%emt 0:15:06]} Bg4 {[%emt 0:07:55]} 14. Qd2 {[%emt 0:13:44]} Bxf3 {[%emt 0:09:51]} 15. gxf3 {[%emt 0:00:06]} Nxb3 {[%emt 0:01:31]} 16. cxb3 {[%emt 0:01:33]} Qe6 {[%emt 0:00:20]} 1/2-1/2

[Event "7th Capablanca Memorial GM 2019"]
[Site "Anogia"]
[Date "2019.09.19"]
[Round "9.3"]
[White "David, Alberto"]
[Black "Ioannidis, Evgenios"]
[Result "1/2-1/2"]
[ECO "A14"]
[WhiteElo "2533"]
[BlackElo "2390"]
[Annotator "ChessBase"]
[PlyCount "38"]
[EventDate "2019.09.11"]
[EventType "tourn"]
[EventCountry "GRE"]
[SourceTitle "playchess.com"]
[Source "ChessBase"]
[SourceQuality "1"]
[TimeControl "40/5400+30:1800+30"]

1. c4 {[%emt 0:00:00]} e6 {[%emt 0:00:00]} 2. g3 {[%emt 0:02:48]} Nf6 {[%emt 0:00:30]} 3. Bg2 {[%emt 0:00:16]} d5 {[%emt 0:00:10]} 4. Nf3 {[%emt 0:00:23]} Be7 {[%emt 0:00:36]} 5. O-O {[%emt 0:06:23]} O-O {[%emt 0:00:25]} 6. b3 {[%emt 0:01:27]} c5 {[%emt 0:00:38]} 7. e3 {[%emt 0:00:07]} Nc6 {[%emt 0:00:29]} 8. Bb2 {[%emt 0:00:41]} b6 {[%emt 0:00:24]} 9. Qe2 {[%emt 0:02:28]} Ba6 {[%emt 0:01:09]} 10. d3 {[%emt 0:03:55]} Rc8 {[%emt 0:05:31]} 11. Rd1 {[%emt 0:20:26]} Qc7 {[%emt 0:00:25]} 12. Nc3 {[%emt 0:00:04]} Rfd8 {[%emt 0:00:15]} 13. Rac1 {[%emt 0:00:08]} Qb8 {[%emt 0:00:23]} 14. Nb5 {[%emt 0:00:29]} Bb7 {[%emt 0:00:16]} 15. Ba1 {[%emt 0:12:15]} h6 {[%emt 0:07:41]} 16. Bb2 {[%emt 0:03:20]} Ba6 {[%emt 0:03:35]} 17. Bh3 {[%emt 0:03:25]} Bb7 {[%emt 0:01:29]} 18. Bg2 {[%emt 0:06:48]} Ba6 {[%emt 0:00:25]} 19. Bh3 {[%emt 0:02:49]} Bb7 {[%emt 0:00:06]} 1/2-1/2

[Event "7th Capablanca Memorial GM 2019"]
[Site "Anogia"]
[Date "2019.09.19"]
[Round "9.4"]
[White "Osmak, Iulija"]
[Black "Patrelakis, Evaggelos"]
[Result "0-1"]
[ECO "B81"]
[WhiteElo "2408"]
[BlackElo "2202"]
[Annotator "ChessBase"]
[PlyCount "56"]
[EventDate "2019.09.11"]
[EventType "tourn"]
[EventCountry "GRE"]
[SourceTitle "playchess.com"]
[Source "ChessBase"]
[SourceQuality "1"]
[TimeControl "40/5400+30:1800+30"]

1. e4 {[%emt 0:00:00]} c5 {[%emt 0:00:00]} 2. Nf3 {[%emt 0:00:00]} d6 {[%emt 0:00:00]} 3. d4 {[%emt 0:00:00]} cxd4 {[%emt 0:00:00]} 4. Nxd4 {[%emt 0:00:00]} Nf6 {[%emt 0:00:03]} 5. Nc3 {[%emt 0:00:00]} e6 {[%emt 0:00:12]} 6. g4 {[%emt 0:01:19]} e5 {[%emt 0:00:20]} 7. Nf5 {[%emt 0:00:58]} h5 {[%emt 0:00:22]} 8. g5 {[%emt 0:08:10]} Nxe4 {[%emt 0:00:38]} 9. Nxg7+ {[%emt 0:01:35]} Bxg7 {[%emt 0:00:21]} 10. Nxe4 {[%emt 0:00:03]} d5 {[%emt 0:00:18]} 11. Nc3 {[%emt 0:06:11]} Be6 {[%emt 0:04:11]} 12. Bg2 {[%emt 0:01:20]} e4 {[%emt 0:01:15]} 13. Bf4 {[%emt 0:12:40]} Nc6 {[%emt 0:12:47]} 14. Qd2 {[%emt 0:09:58]} O-O {[%emt 0:06:31]} 15. O-O {[%emt 0:01:24]} Nd4 {[%emt 0:07:27]} 16. Ne2 {[%emt 0:08:15]} Nf3+ {[%emt 0:01:40]} 17. Bxf3 {[%emt 0:00:06]} exf3 {[%emt 0:00:04]} 18. Nd4 {[%emt 0:04:00]} Bh3 {[%emt 0:02:05]} 19. Rfd1 {[%emt 0:00:11]} Qd7 {[%emt 0:17:58]} 20. Bg3 {[%emt 0:00:16]} h4 {[%emt 0:00:37]} 21. Bxh4 {[%emt 0:00:28]} Rae8 {[%emt 0:00:56]} 22. Bg3 {[%emt 0:02:15]} Qg4 {[%emt 0:01:39]} 23. Qd3 {[%emt 0:11:54]} Bxd4 {[%emt 0:00:26]} 24. Qxd4 {[%emt 0:00:32]} Re1+ {[%emt 0:00:14]} 25. Rxe1 {[%emt 0:00:04]} Qxd4 {[%emt 0:00:14]} 26. c3 {[%emt 0:01:05]} Qg4 {[%emt 0:01:07]} 27. Rad1 {[%emt 0:00:09]} Bf1 {[%emt 0:00:37]} 28. Rxf1 {[%emt 0:01:41]} Qh3 {[%emt 0:00:13]} 0-1

[Event "7th Capablanca Memorial GM 2019"]
[Site "Anogia"]
[Date "2019.09.19"]
[Round "9.5"]
[White "Mirzoev, Emil"]
[Black "Audi Ameya"]
[Result "1/2-1/2"]
[ECO "A49"]
[WhiteElo "2477"]
[BlackElo "2329"]
[Annotator "ChessBase"]
[PlyCount "30"]
[EventDate "2019.09.11"]
[EventType "tourn"]
[EventCountry "GRE"]
[SourceTitle "playchess.com"]
[Source "ChessBase"]
[SourceQuality "1"]
[TimeControl "40/5400+30:1800+30"]

1. Nf3 {[%emt 0:00:00]} Nf6 {[%emt 0:00:00]} 2. g3 {[%emt 0:00:00]} g6 {[%emt 0:00:00]} 3. b3 {[%emt 0:00:10]} Bg7 {[%emt 0:00:00]} 4. Bb2 {[%emt 0:00:05]} d6 {[%emt 0:02:15]} 5. d4 {[%emt 0:02:35]} c5 {[%emt 0:05:52]} 6. Bg2 {[%emt 0:02:40]} cxd4 {[%emt 0:02:20]} 7. Nxd4 {[%emt 0:00:48]} d5 {[%emt 0:00:12]} 8. c4 {[%emt 0:01:35]} dxc4 {[%emt 0:00:27]} 9. bxc4 {[%emt 0:00:06]} Qb6 {[%emt 0:00:37]} 10. Qc1 {[%emt 0:09:04]} Ne4 {[%emt 0:08:54]} 11. Bxe4 {[%emt 0:02:35]} Bxd4 {[%emt 0:00:07]} 12. Bxd4 {[%emt 0:00:30]} Qxd4 {[%emt 0:00:04]} 13. Qc3 {[%emt 0:00:34]} Qxc3+ {[%emt 0:02:04]} 14. Nxc3 {[%emt 0:00:06]} Na6 {[%emt 0:00:06]} 15. Bg2 {[%emt 0:01:33]} Nc5 {[%emt 0:08:24]} 1/2-1/2